[Event "November 21 Early 2023"]
[Site "https://www.chess.com"]
[Date "2023.11.21"]
[Round "11"]
[White "Alexandre, Anne Shopie Elizabeth"]
[Black "Bharath Subramaniyam H"]
[Result "1-0"]
[Board "18"]
[TimeControl "180+1"]
[WhiteFideId "11902418"]
[BlackFideId "46634827"]
[WhiteElo "2823"]
[BlackElo "2435"]
[WhiteTeam "HAI"]
[BlackTeam "IND"]
[WhiteClock "0:00:32"]
[BlackClock "0:00:26"]

1. Nf3 {[%clk 0:03:00]}  d5 {[%clk 0:02:59]} 2. e3 {[%clk 0:03:00]}  Nf6 {[%clk 0:02:59]} 3. c4 {[%clk 0:02:59]}  c6 {[%clk 0:03:00]} 4. d4 {[%clk 0:02:58]}  e6 {[%clk 0:03:00]} 5. Nbd2 {[%clk 0:02:58]}  Be7 {[%clk 0:02:59]} 6. Bd3 {[%clk 0:02:57]}  O-O {[%clk 0:03:00]} 7. O-O {[%clk 0:02:58]}  Nbd7 {[%clk 0:02:59]} 8. b3 {[%clk 0:02:58]}  b6 {[%clk 0:02:56]} 9. Bb2 {[%clk 0:02:58]}  Bb7 {[%clk 0:02:56]} 10. Rc1 {[%clk 0:02:59]}  c5 {[%clk 0:02:56]} 11. cxd5 {[%clk 0:02:58]}  Bxd5 {[%clk 0:02:53]} 12. e4 {[%clk 0:02:57]}  Bb7 {[%clk 0:02:54]} 13. e5 {[%clk 0:02:30]}  Nd5 {[%clk 0:02:53]} 14. Bb1 {[%clk 0:02:17]}  cxd4 {[%clk 0:02:50]} 15. Qc2 {[%clk 0:02:15]}  g6 {[%clk 0:02:48]} 16. Bxd4 {[%clk 0:02:12]}  Ba3 {[%clk 0:02:46]} 17. Rce1 {[%clk 0:02:09]}  Ba6 {[%clk 0:02:40]} 18. Nc4 {[%clk 0:02:08]}  Rc8 {[%clk 0:02:40]} 19. Qe2 {[%clk 0:02:00]}  Bb4 {[%clk 0:02:39]} 20. Rc1 {[%clk 0:01:58]}  Nc5 {[%clk 0:02:35]} 21. Rfd1 {[%clk 0:01:57]}  Qe7 {[%clk 0:02:31]} 22. h4 {[%clk 0:01:57]}  Ba3 {[%clk 0:02:30]} 23. Rc2 {[%clk 0:01:51]}  Nb4 {[%clk 0:02:29]} 24. Rcd2 {[%clk 0:01:50]}  Bxc4 {[%clk 0:02:23]} 25. bxc4 {[%clk 0:01:48]}  Nba6 {[%clk 0:02:22]} 26. h5 {[%clk 0:01:47]}  Bb4 {[%clk 0:02:22]} 27. Rb2 {[%clk 0:01:46]}  Na4 {[%clk 0:02:21]} 28. Rb3 {[%clk 0:01:42]}  Bc5 {[%clk 0:02:21]} 29. Qe3 {[%clk 0:01:34]}  Rfd8 {[%clk 0:02:19]} 30. Rbd3 {[%clk 0:01:32]}  Nb2 {[%clk 0:02:13]} 31. Bxc5 {[%clk 0:01:32]}  Nxc5 {[%clk 0:02:11]} 32. Rxd8+ {[%clk 0:01:31]}  Rxd8 {[%clk 0:02:12]} 33. Rc1 {[%clk 0:01:29]}  Rd1+ {[%clk 0:01:59]} 34. Rxd1 {[%clk 0:01:29]}  Nxd1 {[%clk 0:02:00]} 35. Qh6 {[%clk 0:01:24]}  Qf8 {[%clk 0:01:59]} 36. Qd2 {[%clk 0:01:23]}  Nxf2 {[%clk 0:01:30]} 37. Kxf2 {[%clk 0:01:23]}  Na4 {[%clk 0:01:24]} 38. h6 {[%clk 0:01:18]}  Qc8 {[%clk 0:01:15]} 39. Kg3 {[%clk 0:01:14]}  Nc5 {[%clk 0:01:13]} 40. Qg5 {[%clk 0:01:06]}  Qf8 {[%clk 0:01:08]} 41. Bc2 {[%clk 0:01:06]}  Nd7 {[%clk 0:01:06]} 42. Qf4 {[%clk 0:01:02]}  Qe7 {[%clk 0:01:03]} 43. Ba4 {[%clk 0:00:58]}  Nc5 {[%clk 0:01:03]} 44. Bc6 {[%clk 0:00:57]}  Kf8 {[%clk 0:01:01]} 45. Ng5 {[%clk 0:00:56]}  Kg8 {[%clk 0:00:54]} 46. Qf6 {[%clk 0:00:50]}  Qxf6 {[%clk 0:00:53]} 47. exf6 {[%clk 0:00:51]}  Nd3 {[%clk 0:00:47]} 48. Be8 {[%clk 0:00:49]}  Ne5 {[%clk 0:00:41]} 49. Kf4 {[%clk 0:00:48]}  Nd3+ {[%clk 0:00:40]} 50. Ke3 {[%clk 0:00:44]}  Ne5 {[%clk 0:00:40]} 51. Kd4 {[%clk 0:00:42]}  Ng4 {[%clk 0:00:38]} 52. Bxf7+ {[%clk 0:00:41]}  Kf8 {[%clk 0:00:39]} 53. Bxg6 {[%clk 0:00:33]}  Nxh6 {[%clk 0:00:32]} 54. Nxh7+ {[%clk 0:00:32]}  Kg8 {[%clk 0:00:26]} 55. Ng5 {[%clk 0:00:32]} 1-0

[Event "November 21 Early 2023"]
[Site "https://www.chess.com"]
[Date "2023.11.21"]
[Round "11"]
[White "Ter-Sahakyan, Samvel"]
[Black "Vignesh N R"]
[Result "1-0"]
[Board "19"]
[TimeControl "180+1"]
[WhiteFideId "13302531"]
[BlackFideId "25012215"]
[WhiteElo "2556"]
[BlackElo "2425"]
[WhiteTeam "ARM"]
[BlackTeam "IND"]
[WhiteClock "0:00:07"]
[BlackClock "0:00:18"]

1. d4 {[%clk 0:03:00]}  Nf6 {[%clk 0:02:59]} 2. c4 {[%clk 0:03:00]}  e6 {[%clk 0:03:00]} 3. Nf3 {[%clk 0:03:00]}  d5 {[%clk 0:03:00]} 4. g3 {[%clk 0:03:01]}  dxc4 {[%clk 0:03:00]} 5. Bg2 {[%clk 0:03:00]}  c5 {[%clk 0:03:00]} 6. O-O {[%clk 0:03:00]}  Nc6 {[%clk 0:03:00]} 7. Qa4 {[%clk 0:02:56]}  Bd7 {[%clk 0:02:59]} 8. dxc5 {[%clk 0:02:54]}  Bxc5 {[%clk 0:02:17]} 9. Qxc4 {[%clk 0:02:54]}  Bb6 {[%clk 0:02:18]} 10. Nc3 {[%clk 0:02:51]}  O-O {[%clk 0:02:13]} 11. Bg5 {[%clk 0:02:51]}  h6 {[%clk 0:02:12]} 12. Bh4 {[%clk 0:02:50]}  Rc8 {[%clk 0:01:42]} 13. Qf4 {[%clk 0:02:50]}  Bc7 {[%clk 0:01:38]} 14. Qd2 {[%clk 0:02:40]}  Qe7 {[%clk 0:01:27]} 15. Nb5 {[%clk 0:02:14]}  Rfd8 {[%clk 0:01:09]} 16. Nxc7 {[%clk 0:02:14]}  Rxc7 {[%clk 0:01:10]} 17. Rfd1 {[%clk 0:02:10]}  e5 {[%clk 0:01:06]} 18. Qd6 {[%clk 0:01:59]}  Qxd6 {[%clk 0:00:50]} 19. Rxd6 {[%clk 0:01:58]}  Be6 {[%clk 0:00:51]} 20. Rxd8+ {[%clk 0:01:48]}  Nxd8 {[%clk 0:00:51]} 21. Bxf6 {[%clk 0:01:44]}  gxf6 {[%clk 0:00:51]} 22. Ne1 {[%clk 0:01:35]}  Nc6 {[%clk 0:00:49]} 23. e3 {[%clk 0:01:35]}  Nb4 {[%clk 0:00:49]} 24. a3 {[%clk 0:01:35]}  Na6 {[%clk 0:00:48]} 25. b4 {[%clk 0:01:26]}  b6 {[%clk 0:00:48]} 26. Nf3 {[%clk 0:01:15]}  Rc3 {[%clk 0:00:48]} 27. Nd2 {[%clk 0:01:15]}  f5 {[%clk 0:00:42]} 28. Nf3 {[%clk 0:01:11]}  e4 {[%clk 0:00:38]} 29. Nd4 {[%clk 0:01:09]}  Kg7 {[%clk 0:00:37]} 30. Bf1 {[%clk 0:00:51]}  Nc7 {[%clk 0:00:36]} 31. a4 {[%clk 0:00:48]}  Nd5 {[%clk 0:00:26]} 32. b5 {[%clk 0:00:48]}  Nb4 {[%clk 0:00:22]} 33. a5 {[%clk 0:00:45]}  bxa5 {[%clk 0:00:17]} 34. Rxa5 {[%clk 0:00:41]}  Rc1 {[%clk 0:00:18]} 35. Nxe6+ {[%clk 0:00:35]}  fxe6 {[%clk 0:00:19]} 36. Rxa7+ {[%clk 0:00:36]}  Kf6 {[%clk 0:00:19]} 37. b6 {[%clk 0:00:36]}  Rb1 {[%clk 0:00:18]} 38. b7 {[%clk 0:00:24]}  Nc6 {[%clk 0:00:18]} 39. Ra6 {[%clk 0:00:20]}  Ne5 {[%clk 0:00:19]} 40. Ra7 {[%clk 0:00:15]}  Nf3+ {[%clk 0:00:19]} 41. Kg2 {[%clk 0:00:15]}  Ne1+ {[%clk 0:00:19]} 42. Kh3 {[%clk 0:00:15]}  Nf3 {[%clk 0:00:19]} 43. Ba6 {[%clk 0:00:09]}  Ne5 {[%clk 0:00:19]} 44. Ra8 {[%clk 0:00:08]}  Nc6 {[%clk 0:00:20]} 45. Rc8 {[%clk 0:00:08]}  Ne5 {[%clk 0:00:18]} 46. b8=Q {[%clk 0:00:07]} 1-0

[Event "November 21 Early 2023"]
[Site "https://www.chess.com"]
[Date "2023.11.21"]
[Round "11"]
[White "Pourramezanali, Amirreza"]
[Black "Mikhailovsky, Vladimir"]
[Result "0-1"]
[Board "21"]
[TimeControl "180+1"]
[WhiteFideId "12511412"]
[BlackFideId "34105414"]
[WhiteElo "2302"]
[BlackElo "2257"]
[WhiteTeam "IRI"]
[BlackTeam "RUS"]
[WhiteClock "0:00:00"]
[BlackClock "0:00:04"]

1. e4 {[%clk 0:03:00]}  c6 {[%clk 0:02:59]} 2. d4 {[%clk 0:02:59]}  d5 {[%clk 0:03:00]} 3. f3 {[%clk 0:03:00]}  g6 {[%clk 0:02:57]} 4. Nc3 {[%clk 0:03:00]}  Bg7 {[%clk 0:02:58]} 5. Be3 {[%clk 0:03:00]}  Nd7 {[%clk 0:02:45]} 6. e5 {[%clk 0:02:58]}  Nh6 {[%clk 0:02:42]} 7. g4 {[%clk 0:02:57]}  f6 {[%clk 0:02:34]} 8. Qd2 {[%clk 0:02:56]}  Ng8 {[%clk 0:02:14]} 9. f4 {[%clk 0:02:51]}  Nb6 {[%clk 0:02:10]} 10. h3 {[%clk 0:02:50]}  f5 {[%clk 0:01:56]} 11. Bd3 {[%clk 0:02:39]}  Nc4 {[%clk 0:01:47]} 12. Bxc4 {[%clk 0:02:30]}  dxc4 {[%clk 0:01:47]} 13. Qe2 {[%clk 0:02:27]}  Be6 {[%clk 0:01:25]} 14. Nf3 {[%clk 0:02:23]}  fxg4 {[%clk 0:01:13]} 15. Ng5 {[%clk 0:02:22]}  Bd5 {[%clk 0:01:13]} 16. O-O-O {[%clk 0:01:44]}  g3 {[%clk 0:00:55]} 17. Rhg1 {[%clk 0:01:39]}  Nh6 {[%clk 0:00:55]} 18. Rxg3 {[%clk 0:01:27]}  Nf5 {[%clk 0:00:55]} 19. Rgg1 {[%clk 0:01:28]}  Qd7 {[%clk 0:00:55]} 20. Nce4 {[%clk 0:01:22]}  b6 {[%clk 0:00:48]} 21. Ng3 {[%clk 0:01:22]}  O-O-O {[%clk 0:00:45]} 22. Kb1 {[%clk 0:01:18]}  Nxg3 {[%clk 0:00:39]} 23. Rxg3 {[%clk 0:01:17]}  Qf5 {[%clk 0:00:40]} 24. Bc1 {[%clk 0:01:07]}  Kb7 {[%clk 0:00:38]} 25. Nf3 {[%clk 0:01:02]}  Rd7 {[%clk 0:00:35]} 26. Nh4 {[%clk 0:00:59]}  Qf7 {[%clk 0:00:26]} 27. f5 {[%clk 0:00:58]}  gxf5 {[%clk 0:00:22]} 28. e6 {[%clk 0:00:49]}  Bxe6 {[%clk 0:00:08]} 29. Rxg7 {[%clk 0:00:50]}  Qxg7 {[%clk 0:00:07]} 30. Qxe6 {[%clk 0:00:50]}  Rd6 {[%clk 0:00:05]} 31. Qxf5 {[%clk 0:00:37]}  Rxd4 {[%clk 0:00:06]} 32. Re1 {[%clk 0:00:24]}  Rhd8 {[%clk 0:00:05]} 33. Qh5 {[%clk 0:00:12]}  R4d5 {[%clk 0:00:03]} 34. Nf5 {[%clk 0:00:07]}  Qf6 {[%clk 0:00:03]} 35. Qxh7 {[%clk 0:00:04]}  Qxf5 {[%clk 0:00:03]} 36. Rxe7+ {[%clk 0:00:04]}  Ka6 {[%clk 0:00:01]} 37. Rxa7+ {[%clk 0:00:05]}  Kb5 {[%clk 0:00:02]} 38. a4+ {[%clk 0:00:05]}  Kc5 {[%clk 0:00:03]} 39. Qe7+ {[%clk 0:00:05]}  R8d6 {[%clk 0:00:03]} 40. Be3+ {[%clk 0:00:00]}  Kb4 {[%clk 0:00:04]} 0-1

[Event "November 21 Early 2023"]
[Site "https://www.chess.com"]
[Date "2023.11.21"]
[Round "11"]
[White "Shuvalova, Polina"]
[Black "BardArtem"]
[Result "1-0"]
[Board "31"]
[TimeControl "180+1"]
[WhiteFideId "24171760"]
[WhiteElo "2342"]
[BlackElo "2838"]
[WhiteTeam "RUS"]
[WhiteClock "0:00:04"]
[BlackClock "0:00:01"]

1. e4 {[%clk 0:03:00]}  e5 {[%clk 0:02:53]} 2. Nf3 {[%clk 0:03:00]}  Nc6 {[%clk 0:02:53]} 3. Nc3 {[%clk 0:03:01]}  Nf6 {[%clk 0:02:51]} 4. Bb5 {[%clk 0:03:01]}  Bb4 {[%clk 0:02:51]} 5. O-O {[%clk 0:03:01]}  O-O {[%clk 0:02:50]} 6. d3 {[%clk 0:03:02]}  Bxc3 {[%clk 0:02:50]} 7. bxc3 {[%clk 0:03:02]}  d6 {[%clk 0:02:50]} 8. Re1 {[%clk 0:03:02]}  Ne7 {[%clk 0:02:45]} 9. d4 {[%clk 0:03:02]}  c6 {[%clk 0:02:24]} 10. Bd3 {[%clk 0:03:00]}  Qc7 {[%clk 0:02:23]} 11. h3 {[%clk 0:03:00]}  h6 {[%clk 0:02:20]} 12. a4 {[%clk 0:02:59]}  Rd8 {[%clk 0:02:19]} 13. a5 {[%clk 0:02:56]}  Ng6 {[%clk 0:02:17]} 14. Qe2 {[%clk 0:02:43]}  a6 {[%clk 0:02:12]} 15. Be3 {[%clk 0:02:40]}  Qe7 {[%clk 0:02:04]} 16. Rab1 {[%clk 0:02:31]}  Be6 {[%clk 0:01:47]} 17. c4 {[%clk 0:02:21]}  Nh5 {[%clk 0:01:24]} 18. d5 {[%clk 0:02:09]}  Nhf4 {[%clk 0:01:18]} 19. Qd2 {[%clk 0:02:00]}  Bc8 {[%clk 0:01:12]} 20. Qc3 {[%clk 0:01:58]}  c5 {[%clk 0:01:07]} 21. Bf1 {[%clk 0:01:57]}  Rb8 {[%clk 0:00:48]} 22. Bd2 {[%clk 0:01:51]}  f5 {[%clk 0:00:42]} 23. exf5 {[%clk 0:01:22]}  Bxf5 {[%clk 0:00:43]} 24. Kh2 {[%clk 0:01:22]}  Rf8 {[%clk 0:00:36]} 25. Rb6 {[%clk 0:01:18]}  Bc8 {[%clk 0:00:12]} 26. g3 {[%clk 0:01:12]}  Nh5 {[%clk 0:00:06]} 27. Bg2 {[%clk 0:01:07]}  Nf6 {[%clk 0:00:06]} 28. Bc1 {[%clk 0:01:01]}  Qc7 {[%clk 0:00:07]} 29. Nd2 {[%clk 0:00:56]}  Bd7 {[%clk 0:00:05]} 30. Qe3 {[%clk 0:00:49]}  Rf7 {[%clk 0:00:05]} 31. Ne4 {[%clk 0:00:49]}  Nxe4 {[%clk 0:00:03]} 32. Bxe4 {[%clk 0:00:50]}  Bf5 {[%clk 0:00:03]} 33. Bg2 {[%clk 0:00:35]}  Rbf8 {[%clk 0:00:03]} 34. Qe2 {[%clk 0:00:32]}  Bc8 {[%clk 0:00:04]} 35. Be3 {[%clk 0:00:33]}  Ne7 {[%clk 0:00:04]} 36. g4 {[%clk 0:00:25]}  Ng6 {[%clk 0:00:04]} 37. Be4 {[%clk 0:00:26]}  Nf4 {[%clk 0:00:03]} 38. Qd2 {[%clk 0:00:21]}  Qe7 {[%clk 0:00:04]} 39. Rg1 {[%clk 0:00:16]}  Kh8 {[%clk 0:00:03]} 40. Rg3 {[%clk 0:00:16]}  Qh4 {[%clk 0:00:03]} 41. f3 {[%clk 0:00:11]}  Rf6 {[%clk 0:00:02]} 42. Qf2 {[%clk 0:00:09]}  R6f7 {[%clk 0:00:02]} 43. Qf1 {[%clk 0:00:07]}  Qf6 {[%clk 0:00:02]} 44. Qf2 {[%clk 0:00:06]}  Ng6 {[%clk 0:00:02]} 45. Qg2 {[%clk 0:00:05]}  Nh4 {[%clk 0:00:03]} 46. Qe2 {[%clk 0:00:06]}  g5 {[%clk 0:00:03]} 47. Qf2 {[%clk 0:00:02]}  Ng6 {[%clk 0:00:04]} 48. Qe2 {[%clk 0:00:02]}  Nf4 {[%clk 0:00:04]} 49. Qf2 {[%clk 0:00:03]}  Kg7 {[%clk 0:00:05]} 50. Qd2 {[%clk 0:00:03]}  Rh8 {[%clk 0:00:06]} 51. Kg1 {[%clk 0:00:03]}  Kf8 {[%clk 0:00:06]} 52. Qh2 {[%clk 0:00:02]}  h5 {[%clk 0:00:06]} 53. Kf2 {[%clk 0:00:02]}  hxg4 {[%clk 0:00:06]} 54. Ke1 {[%clk 0:00:01]}  Rxh3 {[%clk 0:00:06]} 55. Rxh3 {[%clk 0:00:02]}  Nxh3 {[%clk 0:00:04]} 56. fxg4 {[%clk 0:00:01]}  Qf1+ {[%clk 0:00:04]} 57. Kd2 {[%clk 0:00:02]}  Kg7 {[%clk 0:00:04]} 58. Rxd6 {[%clk 0:00:01]}  Nf2 {[%clk 0:00:04]} 59. Qxe5+ {[%clk 0:00:02]}  Kg8 {[%clk 0:00:02]} 60. Rd8+ {[%clk 0:00:02]}  Rf8 {[%clk 0:00:03]} 61. Qxg5+ {[%clk 0:00:02]}  Kf7 {[%clk 0:00:02]} 62. Qg6+ {[%clk 0:00:02]}  Ke7 {[%clk 0:00:02]} 63. Bg5+ {[%clk 0:00:03]}  Rf6 {[%clk 0:00:01]} 64. Qxf6# {[%clk 0:00:04]} 1-0

[Event "November 21 Early 2023"]
[Site "https://www.chess.com"]
[Date "2023.11.21"]
[Round "11"]
[White "Trost, Edvin"]
[Black "Materia, Marco"]
[Result "0-1"]
[Board "34"]
[TimeControl "180+1"]
[WhiteFideId "1729519"]
[BlackFideId "45150451"]
[WhiteElo "2385"]
[BlackElo "2451"]
[WhiteTeam "SWE"]
[BlackTeam "FRA"]
[WhiteClock "0:00:06"]
[BlackClock "0:01:02"]

1. e4 {[%clk 0:03:00]}  c5 {[%clk 0:02:59]} 2. Nf3 {[%clk 0:02:59]}  e6 {[%clk 0:02:59]} 3. d4 {[%clk 0:02:55]}  cxd4 {[%clk 0:03:00]} 4. Nxd4 {[%clk 0:02:55]}  Nc6 {[%clk 0:03:00]} 5. Nc3 {[%clk 0:02:49]}  Qc7 {[%clk 0:03:00]} 6. Qd3 {[%clk 0:02:46]}  Nf6 {[%clk 0:02:57]} 7. Nxc6 {[%clk 0:02:46]}  bxc6 {[%clk 0:02:56]} 8. Qg3 {[%clk 0:02:43]}  Qxg3 {[%clk 0:02:52]} 9. hxg3 {[%clk 0:02:44]}  d5 {[%clk 0:02:52]} 10. Bd3 {[%clk 0:02:44]}  h6 {[%clk 0:02:49]} 11. Bf4 {[%clk 0:02:42]}  Be7 {[%clk 0:02:46]} 12. O-O-O {[%clk 0:02:40]}  Ng4 {[%clk 0:02:38]} 13. Rhf1 {[%clk 0:02:36]}  g5 {[%clk 0:02:35]} 14. Bd2 {[%clk 0:02:36]}  Ne5 {[%clk 0:02:35]} 15. Be2 {[%clk 0:02:32]}  a5 {[%clk 0:02:20]} 16. Be3 {[%clk 0:02:29]}  Ba6 {[%clk 0:02:18]} 17. Bxa6 {[%clk 0:02:27]}  Rxa6 {[%clk 0:02:19]} 18. Bd4 {[%clk 0:02:27]}  f6 {[%clk 0:02:19]} 19. f4 {[%clk 0:02:25]}  Ng4 {[%clk 0:02:17]} 20. exd5 {[%clk 0:02:18]}  cxd5 {[%clk 0:02:17]} 21. Rde1 {[%clk 0:02:14]}  Kf7 {[%clk 0:02:07]} 22. f5 {[%clk 0:02:02]}  e5 {[%clk 0:02:01]} 23. Nxd5 {[%clk 0:02:01]}  Rd8 {[%clk 0:01:58]} 24. Nxe7 {[%clk 0:01:56]}  Rxd4 {[%clk 0:01:57]} 25. Ng6 {[%clk 0:01:55]}  Rad6 {[%clk 0:01:50]} 26. Re2 {[%clk 0:01:55]}  h5 {[%clk 0:01:48]} 27. b3 {[%clk 0:01:52]}  a4 {[%clk 0:01:47]} 28. Kb2 {[%clk 0:01:51]}  axb3 {[%clk 0:01:45]} 29. axb3 {[%clk 0:01:52]}  Rd2 {[%clk 0:01:45]} 30. Rfe1 {[%clk 0:01:51]}  Nh6 {[%clk 0:01:40]} 31. Nxe5+ {[%clk 0:00:39]}  fxe5 {[%clk 0:01:39]} 32. Rxe5 {[%clk 0:00:40]}  Ng4 {[%clk 0:01:27]} 33. Re7+ {[%clk 0:00:36]}  Kf6 {[%clk 0:01:27]} 34. Rh7 {[%clk 0:00:36]}  Rc6 {[%clk 0:01:22]} 35. Rxh5 {[%clk 0:00:22]}  Rcxc2+ {[%clk 0:01:21]} 36. Ka3 {[%clk 0:00:23]}  Ne5 {[%clk 0:01:09]} 37. Rh8 {[%clk 0:00:18]}  Ra2+ {[%clk 0:01:07]} 38. Kb4 {[%clk 0:00:18]}  Nd3+ {[%clk 0:01:08]} 39. Kc3 {[%clk 0:00:07]}  Rac2+ {[%clk 0:01:07]} 40. Kd4 {[%clk 0:00:05]}  Nxe1+ {[%clk 0:01:07]} 41. Ke3 {[%clk 0:00:06]}  Re2+ {[%clk 0:01:05]} 42. Kd4 {[%clk 0:00:06]}  Red2+ {[%clk 0:01:01]} 43. Ke3 {[%clk 0:00:06]}  Rd3+ {[%clk 0:01:02]} 44. Ke4 {[%clk 0:00:06]}  Re2# {[%clk 0:01:02]} 0-1

[Event "November 21 Early 2023"]
[Site "https://www.chess.com"]
[Date "2023.11.21"]
[Round "11"]
[White "Arslanov, Shamil"]
[Black "Suyarov, Mukhammadzokhid"]
[Result "1/2-1/2"]
[Board "35"]
[TimeControl "180+1"]
[WhiteFideId "4192826"]
[BlackFideId "14210495"]
[WhiteElo "2326"]
[BlackElo "2449"]
[WhiteTeam "RUS"]
[BlackTeam "UZB"]
[WhiteClock "0:00:03"]
[BlackClock "0:00:24"]

1. d4 {[%clk 0:02:59]}  e6 {[%clk 0:02:59]} 2. e4 {[%clk 0:02:57]}  d5 {[%clk 0:02:59]} 3. Be3 {[%clk 0:02:57]}  dxe4 {[%clk 0:03:00]} 4. f3 {[%clk 0:02:57]}  Nc6 {[%clk 0:02:56]} 5. Nc3 {[%clk 0:02:49]}  Bb4 {[%clk 0:02:51]} 6. a3 {[%clk 0:02:46]}  Bxc3+ {[%clk 0:02:49]} 7. bxc3 {[%clk 0:02:47]}  Nf6 {[%clk 0:02:49]} 8. fxe4 {[%clk 0:02:31]}  Nxe4 {[%clk 0:02:49]} 9. Qg4 {[%clk 0:02:31]}  Nf6 {[%clk 0:02:27]} 10. Qxg7 {[%clk 0:02:25]}  Rg8 {[%clk 0:02:27]} 11. Qh6 {[%clk 0:02:24]}  Rg6 {[%clk 0:02:25]} 12. Qh4 {[%clk 0:02:14]}  Rg4 {[%clk 0:02:25]} 13. Qf2 {[%clk 0:02:09]}  Re4 {[%clk 0:02:22]} 14. Be2 {[%clk 0:02:02]}  e5 {[%clk 0:02:18]} 15. Bg5 {[%clk 0:01:32]}  exd4 {[%clk 0:02:01]} 16. Bxf6 {[%clk 0:01:25]}  Qd5 {[%clk 0:01:59]} 17. Nf3 {[%clk 0:01:15]}  Qc4 {[%clk 0:01:50]} 18. Kf1 {[%clk 0:00:59]}  Qxc3 {[%clk 0:01:47]} 19. Re1 {[%clk 0:00:58]}  Be6 {[%clk 0:01:38]} 20. Bd3 {[%clk 0:00:53]}  Rxe1+ {[%clk 0:01:36]} 21. Qxe1 {[%clk 0:00:53]}  Qxa3 {[%clk 0:01:34]} 22. Kf2 {[%clk 0:00:32]}  Qc5 {[%clk 0:01:29]} 23. Qe4 {[%clk 0:00:30]}  Kd7 {[%clk 0:01:27]} 24. Rb1 {[%clk 0:00:29]}  Rg8 {[%clk 0:01:20]} 25. Rb5 {[%clk 0:00:21]}  Qd6 {[%clk 0:01:19]} 26. Rxb7 {[%clk 0:00:13]}  Rg6 {[%clk 0:01:16]} 27. Be5 {[%clk 0:00:11]}  Nxe5 {[%clk 0:01:12]} 28. Nxe5+ {[%clk 0:00:10]}  Ke7 {[%clk 0:01:02]} 29. Nxg6+ {[%clk 0:00:11]}  hxg6 {[%clk 0:01:03]} 30. Rb1 {[%clk 0:00:07]}  Kf8 {[%clk 0:01:02]} 31. Re1 {[%clk 0:00:07]}  Qb6 {[%clk 0:00:59]} 32. Qe5 {[%clk 0:00:06]}  Kg8 {[%clk 0:00:59]} 33. h3 {[%clk 0:00:07]}  a5 {[%clk 0:00:59]} 34. Kg3 {[%clk 0:00:06]}  a4 {[%clk 0:00:59]} 35. Bxg6 {[%clk 0:00:06]}  a3 {[%clk 0:01:00]} 36. Bd3 {[%clk 0:00:03]}  a2 {[%clk 0:01:00]} 37. Qg5+ {[%clk 0:00:03]}  Kf8 {[%clk 0:01:00]} 38. Qd8+ {[%clk 0:00:04]}  Kg7 {[%clk 0:00:59]} 39. Re5 {[%clk 0:00:03]}  f6 {[%clk 0:00:47]} 40. Qe7+ {[%clk 0:00:02]}  Bf7 {[%clk 0:00:48]} 41. Bc4 {[%clk 0:00:02]}  fxe5 {[%clk 0:00:39]} 42. Qxf7+ {[%clk 0:00:02]}  Kh6 {[%clk 0:00:40]} 43. Bxa2 {[%clk 0:00:03]}  Qd6 {[%clk 0:00:38]} 44. Bd5 {[%clk 0:00:01]}  e4+ {[%clk 0:00:38]} 45. Kf2 {[%clk 0:00:02]}  e3+ {[%clk 0:00:38]} 46. Ke2 {[%clk 0:00:02]}  Qa6+ {[%clk 0:00:35]} 47. Kf3 {[%clk 0:00:02]}  Qf1+ {[%clk 0:00:35]} 48. Kg3 {[%clk 0:00:03]}  e2 {[%clk 0:00:34]} 49. Qe6+ {[%clk 0:00:02]}  Kg5 {[%clk 0:00:34]} 50. Qe5+ {[%clk 0:00:02]}  Kh6 {[%clk 0:00:34]} 51. Qe6+ {[%clk 0:00:02]}  Kg7 {[%clk 0:00:27]} 52. Qe7+ {[%clk 0:00:03]}  Kh6 {[%clk 0:00:24]} 53. Qe6+ {[%clk 0:00:03]} 1/2-1/2

[Event "November 21 Early 2023"]
[Site "https://www.chess.com"]
[Date "2023.11.21"]
[Round "11"]
[White "Predator0608"]
[Black "Narayanan, Srinath"]
[Result "0-1"]
[Board "41"]
[TimeControl "180+1"]
[BlackFideId "5018420"]
[WhiteElo "2598"]
[BlackElo "2442"]
[BlackTeam "IND"]
[WhiteClock "0:00:00"]
[BlackClock "0:00:16"]

1. e4 {[%clk 0:03:00]}  c5 {[%clk 0:03:00]} 2. Nf3 {[%clk 0:03:00]}  d6 {[%clk 0:03:00]} 3. d4 {[%clk 0:03:01]}  cxd4 {[%clk 0:03:01]} 4. Nxd4 {[%clk 0:03:02]}  Nf6 {[%clk 0:03:02]} 5. Nc3 {[%clk 0:03:02]}  Nc6 {[%clk 0:03:03]} 6. Bg5 {[%clk 0:03:01]}  e6 {[%clk 0:03:03]} 7. Qd2 {[%clk 0:03:01]}  a6 {[%clk 0:03:03]} 8. O-O-O {[%clk 0:03:01]}  Be7 {[%clk 0:03:04]} 9. f4 {[%clk 0:03:01]}  Bd7 {[%clk 0:03:02]} 10. Nf3 {[%clk 0:03:01]}  b5 {[%clk 0:03:02]} 11. Bxf6 {[%clk 0:03:01]}  gxf6 {[%clk 0:03:02]} 12. f5 {[%clk 0:02:58]}  Qb6 {[%clk 0:03:02]} 13. g3 {[%clk 0:02:56]}  O-O-O {[%clk 0:03:01]} 14. Bh3 {[%clk 0:02:51]}  Kb8 {[%clk 0:02:59]} 15. Ne2 {[%clk 0:02:20]}  Bc8 {[%clk 0:02:30]} 16. Nf4 {[%clk 0:02:16]}  d5 {[%clk 0:02:30]} 17. Qe2 {[%clk 0:01:42]}  dxe4 {[%clk 0:01:50]} 18. Qxe4 {[%clk 0:01:43]}  Bb7 {[%clk 0:01:50]} 19. Qe2 {[%clk 0:01:07]}  Nb4 {[%clk 0:01:50]} 20. fxe6 {[%clk 0:00:32]}  fxe6 {[%clk 0:01:40]} 21. a3 {[%clk 0:00:20]}  Nxc2 {[%clk 0:01:28]} 22. Kxc2 {[%clk 0:00:17]}  Qc6+ {[%clk 0:01:27]} 23. Kb1 {[%clk 0:00:18]}  Qxf3 {[%clk 0:01:28]} 24. Qxf3 {[%clk 0:00:10]}  Bxf3 {[%clk 0:01:29]} 25. Rxd8+ {[%clk 0:00:11]}  Rxd8 {[%clk 0:01:28]} 26. Re1 {[%clk 0:00:12]}  e5 {[%clk 0:01:26]} 27. Kc2 {[%clk 0:00:11]}  Rd6 {[%clk 0:00:56]} 28. Re3 {[%clk 0:00:07]}  Bb7 {[%clk 0:00:48]} 29. Ne2 {[%clk 0:00:07]}  Rc6+ {[%clk 0:00:46]} 30. Nc3 {[%clk 0:00:08]}  Bc5 {[%clk 0:00:46]} 31. Rf3 {[%clk 0:00:08]}  Bd4 {[%clk 0:00:43]} 32. Rf1 {[%clk 0:00:07]}  Rb6 {[%clk 0:00:38]} 33. Kb3 {[%clk 0:00:05]}  a5 {[%clk 0:00:37]} 34. Kc2 {[%clk 0:00:04]}  b4 {[%clk 0:00:37]} 35. axb4 {[%clk 0:00:05]}  axb4 {[%clk 0:00:36]} 36. Ne2 {[%clk 0:00:06]}  b3+ {[%clk 0:00:19]} 37. Kd2 {[%clk 0:00:06]}  Bxb2 {[%clk 0:00:19]} 38. Rb1 {[%clk 0:00:05]}  Ba3 {[%clk 0:00:19]} 39. Kc3 {[%clk 0:00:05]}  Bd5 {[%clk 0:00:19]} 40. Bf5 {[%clk 0:00:04]}  b2 {[%clk 0:00:17]} 41. Bxh7 {[%clk 0:00:00]}  Ba2 {[%clk 0:00:16]} 0-1